Workbook

Sheet Regular
A1: Monthly Overtime Sheet for Employees - Regular
A3: Project Name:
A4: Holiday days:
AG5: Friday | AK5: =SUM(AP10:AP17) -> 12 | AO5: Holiday | AQ5: =SUM(AQ10:AQ17) -> 0
I6: =WEEKDAY(DATE(YEAR($T$7),MONTH($T$7),DAY(I8)),1) -> 2 | J6: =WEEKDAY(DATE(YEAR($T$7),MONTH($T$7),DAY(J8)),1) -> 3 | K6: 4 | L6: 5 | M6: 6 | N6: 7 | O6: 1 | P6: 2 | Q6: 3 | R6: 4 | S6: 5 | T6: 6 | U6: 7 | V6: 1 | W6: 2 | X6: 3 | Y6: 4 | Z6: 5 | AA6: 6 | AB6: 7 | AC6: 1 | AD6: 2 | AE6: 3 | AF6: 4 | AG6: 5 | AH6: 6 | AI6: 7 | AJ6: 1 | AK6: 2 | AL6: 3 | AM6: 1
A7: S/L | B7: File No | C7: Name | D7: Trade | E7: Basic | F7: Hours(N) | G7: Hours (F) | H7: Hours (H) | I7: Month Of: | T7: 2021-03-01 | AN7: Days | AO7: O.T(N) | AP7: O.T(F) | AQ7: O.T(H) | AR7: NET PAYMENT | AS7: PERCENTAGE ( % )
I8: 1 | J8: 2 | K8: 3 | L8: 4 | M8: 5 | N8: 6 | O8: 7 | P8: 8 | Q8: 9 | R8: 10 | S8: 11 | T8: 12 | U8: 13 | V8: 14 | W8: 15 | X8: 16 | Y8: 17 | Z8: 18 | AA8: 19 | AB8: 20 | AC8: 21 | AD8: 22 | AE8: 23 | AF8: 24 | AG8: 25 | AH8: 26 | AI8: 27 | AJ8: 28 | AK8: 29 | AL8: 30 | BH8: 1 | BI8: 2 | BJ8: 3 | BK8: 4 | BL8: 5 | BM8: 6 | BN8: 7 | BO8: 8 | BP8: 9 | BQ8: 10 | BR8: 11 | BS8: 12 | BT8: 13 | BU8: 14 | BV8: 15 | BW8: 16 | BX8: 17 | BY8: 18 | BZ8: 19 | CA8: 20 | CB8: 21 | CC8: 22 | CD8: 23 | CE8: 24 | CF8: 25 | CG8: 26 | CH8: 27 | CI8: 28 | CJ8: 29 | CK8: 30 | CL8: 31 | CN8: 1 | CO8: 2 | CP8: 3 | CQ8: 4 | CR8: 5 | CS8: 6 | CT8: 7 | CU8: 8 | CV8: 9 | CW8: 10 | CX8: 11 | CY8: 12 | CZ8: 13 | DA8: 14 | DB8: 15 | DC8: 16 | DD8: 17 | DE8: 18 | DF8: 19 | DG8: 20 | DH8: 21 | DI8: 22 | DJ8: 23 | DK8: 24 | DL8: 25 | DM8: 26 | DN8: 27 | DO8: 28 | DP8: 29 | DQ8: 30 | DR8: 31
A9: For Holiday Use Only
A10: 1 | B10: 50006 | C10: SAHAD THAZHATH MUHAMMED | D10: PRO | E10: 2700 | F10: =SUM(E10/30/8*1.25) -> 14.0625 | G10: =SUM(E10/30/8*1.5) -> 16.875 | H10: =SUM(E10/30/8*2.5) -> 28.125 | I10: 3 | J10: 0 | K10: 3 | L10: 3 | M10: 3 | N10: 3 | O10: 3 | P10: 3 | Q10: 0 | R10: 3 | S10: 3 | T10: 3 | U10: 3 | V10: 3 | W10: 3 | X10: 0 | Y10: 3 | Z10: 3 | AA10: 3 | AB10: 3 | AC10: 3 | AD10: 3 | AE10: 0 | AF10: 3 | AG10: 3 | AH10: 3 | AI10: 3 | AJ10: 3 | AK10: 3 | AL10: 0 | AM10: 3 | AN10: =COUNT(I10:AM10) -> 31 | AO10: =SUM(I10:AM10)-AP10-AQ10 -> 66 | AP10: =SUMIF(I6:AM6,6,I10:AM10) -> 12 | AQ10: =SUMIF(I9:AM9,"H",I10:AM10) -> 0 | AR10: =SUM(F10*AO10+G10*AP10+H10*AQ10) -> 1130.625 | AS10: =AR10/E10 -> 0.41875 | BH10: =IF(I10="-",0,IF(I10="A",0,IF(I9="H",0,IF(I6=6,0,IF(I10>2,2,I10))))) -> 2 | BI10: =IF(J10="-",0,IF(J10="A",0,IF(J9="H",0,IF(J6=6,0,IF(J10>2,2,J10))))) -> 0 | BJ10: 2 | BK10: 2 | BL10: 0 | BM10: 2 | BN10: 2 | BO10: 2 | BP10: 0 | BQ10: 2 | BR10: 2 | BS10: 0 | BT10: 2 | BU10: 2 | BV10: 2 | BW10: 0 | BX10: 2 | BY10: 2 | BZ10: 0 | CA10: 2 | CB10: 2 | CC10: 2 | CD10: 0 | CE10: 2 | CF10: 2 | CG10: 0 | CH10: 2 | CI10: 2 | CJ10: 2 | CK10: 0 | CL10: 2 | CN10: =I10-BH10 -> 1 | CO10: 0 | CP10: 1 | CQ10: 1 | CR10: 3 | CS10: 1 | CT10: 1 | CU10: 1 | CV10: 0 | CW10: 1 | CX10: 1 | CY10: 3 | CZ10: 1 | DA10: 1 | DB10: 1 | DC10: 0 | DD10: 1 | DE10: 1 | DF10: 3 | DG10: 1 | DH10: 1 | DI10: 1 | DJ10: 0 | DK10: 1 | DL10: 1 | DM10: 3 | DN10: 1 | DO10: 1 | DP10: 1 | DQ10: 0 | DR10: 1
A11: 2 | B11: 90000 | C11: ABDUL KADER RANDODI | D11: OFFICE BOY | E11: 1200 | F11: =SUM(E11/30/8*1.25) -> 6.25 | G11: =SUM(E11/30/8*1.5) -> 7.5 | H11: =SUM(E11/30/8*2.5) -> 12.5 | AN11: =COUNT(I11:AM11) -> 0 | AO11: =SUM(J11:O11,Q11:V11,X11:AC11,AE11:AJ11,AL11) -> 0 | AP11: =SUM(I11,P11,W11,AD11,AK11) -> 0 | AQ11: =SUMIF(I10:AM10,"H",I11:AM11) -> 0 | AR11: =SUM(F11*AO11+G11*AP11+H11*AQ11) -> 0 | AS11: 0 | BH11: =IF(I11="-",0,IF(I11="A",0,IF(I10="H",0,IF(I7=6,0,IF(I11>2,2,I11))))) -> 0 | BI11: 0 | BJ11: 0 | BK11: 0 | BL11: 0 | BM11: 0 | BN11: 0 | BO11: 0 | BP11: 0 | BQ11: 0 | BR11: 0 | BS11: 0 | BT11: 0 | BU11: 0 | BV11: 0 | BW11: 0 | BX11: 0 | BY11: 0 | BZ11: 0 | CA11: 0 | CB11: 0 | CC11: 0 | CD11: 0 | CE11: 0 | CF11: 0 | CG11: 0 | CH11: 0 | CI11: 0 | CJ11: 0 | CK11: 0 | CL11: 0 | CN11: 0 | CO11: 0 | CP11: 0 | CQ11: 0 | CR11: 0 | CS11: 0 | CT11: 0 | CU11: 0 | CV11: 0 | CW11: 0 | CX11: 0 | CY11: 0 | CZ11: 0 | DA11: 0 | DB11: 0 | DC11: 0 | DD11: 0 | DE11: 0 | DF11: 0 | DG11: 0 | DH11: 0 | DI11: 0 | DJ11: 0 | DK11: 0 | DL11: 0 | DM11: 0 | DN11: 0 | DO11: 0 | DP11: 0 | DQ11: 0 | DR11: 0
A12: 3 | B12: 90397 | C12: Kamal Miah Motiur Rahman | D12: OFFICE BOY | E12: 900 | F12: 4.6875 | G12: 5.625 | H12: 9.375 | AN12: 0 | AO12: 0 | AP12: 0 | AQ12: 0 | AR12: 0 | AS12: 0 | BH12: 0 | BI12: 0 | BJ12: 0 | BK12: 0 | BL12: 0 | BM12: 0 | BN12: 0 | BO12: 0 | BP12: 0 | BQ12: 0 | BR12: 0 | BS12: 0 | BT12: 0 | BU12: 0 | BV12: 0 | BW12: 0 | BX12: 0 | BY12: 0 | BZ12: 0 | CA12: 0 | CB12: 0 | CC12: 0 | CD12: 0 | CE12: 0 | CF12: 0 | CG12: 0 | CH12: 0 | CI12: 0 | CJ12: 0 | CK12: 0 | CL12: 0 | CN12: 0 | CO12: 0 | CP12: 0 | CQ12: 0 | CR12: 0 | CS12: 0 | CT12: 0 | CU12: 0 | CV12: 0 | CW12: 0 | CX12: 0 | CY12: 0 | CZ12: 0 | DA12: 0 | DB12: 0 | DC12: 0 | DD12: 0 | DE12: 0 | DF12: 0 | DG12: 0 | DH12: 0 | DI12: 0 | DJ12: 0 | DK12: 0 | DL12: 0 | DM12: 0 | DN12: 0 | DO12: 0 | DP12: 0 | DQ12: 0 | DR12: 0 | EG12: 2019-01-01
A13: 4 | B13: 90397 | C13: Kamal Miah Motiur Rahman | D13: OFFICE BOY | E13: 900 | F13: =SUM(E13/30/8*1.25) -> 4.6875 | G13: =SUM(E13/30/8*1.5) -> 5.625 | H13: =SUM(E13/30/8*2.5) -> 9.375 | AN13: 0 | AO13: 0 | AP13: 0 | AQ13: 0 | AR13: 0 | AS13: 0 | BH13: 0 | BI13: 0 | BJ13: 0 | BK13: 0 | BL13: 0 | BM13: 0 | BN13: 0 | BO13: 0 | BP13: 0 | BQ13: 0 | BR13: 0 | BS13: 0 | BT13: 0 | BU13: 0 | BV13: 0 | BW13: 0 | BX13: 0 | BY13: 0 | BZ13: 0 | CA13: 0 | CB13: 0 | CC13: 0 | CD13: 0 | CE13: 0 | CF13: 0 | CG13: 0 | CH13: 0 | CI13: 0 | CJ13: 0 | CK13: 0 | CL13: 0 | CN13: 0 | CO13: 0 | CP13: 0 | CQ13: 0 | CR13: 0 | CS13: 0 | CT13: 0 | CU13: 0 | CV13: 0 | CW13: 0 | CX13: 0 | CY13: 0 | CZ13: 0 | DA13: 0 | DB13: 0 | DC13: 0 | DD13: 0 | DE13: 0 | DF13: 0 | DG13: 0 | DH13: 0 | DI13: 0 | DJ13: 0 | DK13: 0 | DL13: 0 | DM13: 0 | DN13: 0 | DO13: 0 | DP13: 0 | DQ13: 0 | DR13: 0 | EG13: 2019-01-01
A14: 5 | B14: 90682 | C14: SOJIB MIAH SALAM SIKDER | D14: labour | E14: 700 | F14: 3.645833333 | G14: 4.375 | H14: 7.291666667 | AN14: 0 | AO14: 0 | AP14: 0 | AQ14: 0 | AR14: 0 | AS14: 0 | BH14: 0 | BI14: 0 | BJ14: 0 | BK14: 0 | BL14: 0 | BM14: 0 | BN14: 0 | BO14: 0 | BP14: 0 | BQ14: 0 | BR14: 0 | BS14: 0 | BT14: 0 | BU14: 0 | BV14: 0 | BW14: 0 | BX14: 0 | BY14: 0 | BZ14: 0 | CA14: 0 | CB14: 0 | CC14: 0 | CD14: 0 | CE14: 0 | CF14: 0 | CG14: 0 | CH14: 0 | CI14: 0 | CJ14: 0 | CK14: 0 | CL14: 0 | CN14: 0 | CO14: 0 | CP14: 0 | CQ14: 0 | CR14: 0 | CS14: 0 | CT14: 0 | CU14: 0 | CV14: 0 | CW14: 0 | CX14: 0 | CY14: 0 | CZ14: 0 | DA14: 0 | DB14: 0 | DC14: 0 | DD14: 0 | DE14: 0 | DF14: 0 | DG14: 0 | DH14: 0 | DI14: 0 | DJ14: 0 | DK14: 0 | DL14: 0 | DM14: 0 | DN14: 0 | DO14: 0 | DP14: 0 | DQ14: 0 | DR14: 0 | EG14: 2019-02-01
A15: 6 | B15: 91394 | C15: Asim Ali Shehzad Muhammad Amin | D15: CLERK | E15: 1200 | F15: 6.25 | G15: 7.5 | H15: 12.5 | AN15: 0 | AO15: 0 | AP15: 0 | AQ15: 0 | AR15: 0 | AS15: 0 | BH15: 0 | BI15: 0 | BJ15: 0 | BK15: 0 | BL15: 0 | BM15: 0 | BN15: 0 | BO15: 0 | BP15: 0 | BQ15: 0 | BR15: 0 | BS15: 0 | BT15: 0 | BU15: 0 | BV15: 0 | BW15: 0 | BX15: 0 | BY15: 0 | BZ15: 0 | CA15: 0 | CB15: 0 | CC15: 0 | CD15: 0 | CE15: 0 | CF15: 0 | CG15: 0 | CH15: 0 | CI15: 0 | CJ15: 0 | CK15: 0 | CL15: 0 | CN15: 0 | CO15: 0 | CP15: 0 | CQ15: 0 | CR15: 0 | CS15: 0 | CT15: 0 | CU15: 0 | CV15: 0 | CW15: 0 | CX15: 0 | CY15: 0 | CZ15: 0 | DA15: 0 | DB15: 0 | DC15: 0 | DD15: 0 | DE15: 0 | DF15: 0 | DG15: 0 | DH15: 0 | DI15: 0 | DJ15: 0 | DK15: 0 | DL15: 0 | DM15: 0 | DN15: 0 | DO15: 0 | DP15: 0 | DQ15: 0 | DR15: 0 | EG15: 2019-03-01
A16: 7 | B16: 92723 | C16: ABU HOZAIFA ZAINUL HAQUE | D16: Office Boy | E16: 1000 | F16: 5.208333333 | G16: 6.25 | H16: 10.41666667 | AN16: 0 | AO16: 0 | AP16: 0 | AQ16: 0 | AR16: 0 | AS16: 0 | BH16: 0 | BI16: 0 | BJ16: 0 | BK16: 0 | BL16: 0 | BM16: 0 | BN16: 0 | BO16: 0 | BP16: 0 | BQ16: 0 | BR16: 0 | BS16: 0 | BT16: 0 | BU16: 0 | BV16: 0 | BW16: 0 | BX16: 0 | BY16: 0 | BZ16: 0 | CA16: 0 | CB16: 0 | CC16: 0 | CD16: 0 | CE16: 0 | CF16: 0 | CG16: 0 | CH16: 0 | CI16: 0 | CJ16: 0 | CK16: 0 | CL16: 0 | CN16: 0 | CO16: 0 | CP16: 0 | CQ16: 0 | CR16: 0 | CS16: 0 | CT16: 0 | CU16: 0 | CV16: 0 | CW16: 0 | CX16: 0 | CY16: 0 | CZ16: 0 | DA16: 0 | DB16: 0 | DC16: 0 | DD16: 0 | DE16: 0 | DF16: 0 | DG16: 0 | DH16: 0 | DI16: 0 | DJ16: 0 | DK16: 0 | DL16: 0 | DM16: 0 | DN16: 0 | DO16: 0 | DP16: 0 | DQ16: 0 | DR16: 0 | EG16: 2019-04-01
A17: 7 | B17: 92765 | C17: SARFRAZ AHMAD MUMTAZ AHMAD | D17: Labour | E17: 700 | F17: 3.645833333 | G17: 4.375 | H17: 7.291666667 | AN17: 0 | AO17: 0 | AP17: 0 | AQ17: 0 | AR17: 0 | AS17: 0 | BH17: 0 | BI17: 0 | BJ17: 0 | BK17: 0 | BL17: 0 | BM17: 0 | BN17: 0 | BO17: 0 | BP17: 0 | BQ17: 0 | BR17: 0 | BS17: 0 | BT17: 0 | BU17: 0 | BV17: 0 | BW17: 0 | BX17: 0 | BY17: 0 | BZ17: 0 | CA17: 0 | CB17: 0 | CC17: 0 | CD17: 0 | CE17: 0 | CF17: 0 | CG17: 0 | CH17: 0 | CI17: 0 | CJ17: 0 | CK17: 0 | CL17: 0 | CN17: 0 | CO17: 0 | CP17: 0 | CQ17: 0 | CR17: 0 | CS17: 0 | CT17: 0 | CU17: 0 | CV17: 0 | CW17: 0 | CX17: 0 | CY17: 0 | CZ17: 0 | DA17: 0 | DB17: 0 | DC17: 0 | DD17: 0 | DE17: 0 | DF17: 0 | DG17: 0 | DH17: 0 | DI17: 0 | DJ17: 0 | DK17: 0 | DL17: 0 | DM17: 0 | DN17: 0 | DO17: 0 | DP17: 0 | DQ17: 0 | DR17: 0 | EG17: 2019-05-01
BH18: 0 | BI18: 0 | BJ18: 0 | BK18: 0 | BL18: 0 | BM18: 0 | BN18: 0 | BO18: 0 | BP18: 0 | BQ18: 0 | BR18: 0 | BS18: 0 | BT18: 0 | BU18: 0 | BV18: 0 | BW18: 0 | BX18: =IF(Y18="-",0,IF(Y18="A",0,IF(Y17="H",0,IF(Y14=6,0,IF(Y18>2,2,Y18))))) -> 0 | BY18: 0 | BZ18: 0 | CA18: 0 | CB18: 0 | CC18: 0 | CD18: 0 | CE18: 0 | CF18: 0 | CG18: 0 | CH18: 0 | CI18: 0 | CJ18: 0 | CK18: 0 | CL18: 0 | CN18: 0 | CO18: 0 | CP18: 0 | CQ18: 0 | CR18: 0 | CS18: 0 | CT18: 0 | CU18: =P18-BO18 -> 0 | CV18: 0 | CW18: 0 | CX18: 0 | CY18: 0 | CZ18: 0 | DA18: 0 | DB18: 0 | DC18: 0 | DD18: 0 | DE18: 0 | DF18: 0 | DG18: 0 | DH18: 0 | DI18: 0 | DJ18: 0 | DK18: =AF18-CE18 -> 0 | DL18: 0 | DM18: 0 | DN18: 0 | DO18: 0 | DP18: 0 | DQ18: 0 | DR18: 0
BH19: 0 | BI19: 0 | BJ19: 0 | BK19: 0 | BL19: 0 | BM19: 0 | BN19: 0 | BO19: 0 | BP19: 0 | BQ19: 0 | BR19: 0 | BS19: 0 | BT19: 0 | BU19: 0 | BV19: 0 | BW19: 0 | BX19: 0 | BY19: 0 | BZ19: 0 | CA19: 0 | CB19: 0 | CC19: 0 | CD19: 0 | CE19: 0 | CF19: 0 | CG19: 0 | CH19: 0 | CI19: 0 | CJ19: 0 | CK19: 0 | CL19: 0 | CN19: =I19-BH19 -> 0 | CO19: 0 | CP19: 0 | CQ19: 0 | CR19: 0 | CS19: 0 | CT19: 0 | CU19: 0 | CV19: 0 | CW19: 0 | CX19: 0 | CY19: 0 | CZ19: 0 | DA19: 0 | DB19: 0 | DC19: 0 | DD19: 0 | DE19: 0 | DF19: 0 | DG19: 0 | DH19: 0 | DI19: 0 | DJ19: 0 | DK19: 0 | DL19: 0 | DM19: 0 | DN19: 0 | DO19: 0 | DP19: 0 | DQ19: 0 | DR19: 0
BH20: 0 | BI20: 0 | BJ20: 0 | BK20: 0 | BL20: 0 | BM20: 0 | BN20: 0 | BO20: 0 | BP20: 0 | BQ20: 0 | BR20: 0 | BS20: 0 | BT20: 0 | BU20: 0 | BV20: 0 | BW20: 0 | BX20: 0 | BY20: 0 | BZ20: 0 | CA20: 0 | CB20: 0 | CC20: 0 | CD20: 0 | CE20: 0 | CF20: 0 | CG20: 0 | CH20: 0 | CI20: 0 | CJ20: 0 | CK20: 0 | CL20: 0 | CN20: 0 | CO20: 0 | CP20: 0 | CQ20: 0 | CR20: 0 | CS20: 0 | CT20: 0 | CU20: 0 | CV20: 0 | CW20: 0 | CX20: 0 | CY20: 0 | CZ20: 0 | DA20: 0 | DB20: 0 | DC20: 0 | DD20: 0 | DE20: 0 | DF20: 0 | DG20: 0 | DH20: 0 | DI20: 0 | DJ20: 0 | DK20: 0 | DL20: 0 | DM20: 0 | DN20: 0 | DO20: 0 | DP20: 0 | DQ20: 0 | DR20: 0
BH21: 0 | BI21: 0 | BJ21: 0 | BK21: 0 | BL21: 0 | BM21: 0 | BN21: 0 | BO21: 0 | BP21: 0 | BQ21: 0 | BR21: 0 | BS21: 0 | BT21: 0 | BU21: 0 | BV21: 0 | BW21: 0 | BX21: 0 | BY21: 0 | BZ21: 0 | CA21: 0 | CB21: 0 | CC21: 0 | CD21: 0 | CE21: 0 | CF21: 0 | CG21: 0 | CH21: 0 | CI21: 0 | CJ21: 0 | CK21: 0 | CL21: 0 | CN21: 0 | CO21: 0 | CP21: 0 | CQ21: 0 | CR21: 0 | CS21: 0 | CT21: 0 | CU21: 0 | CV21: 0 | CW21: 0 | CX21: 0 | CY21: 0 | CZ21: 0 | DA21: 0 | DB21: 0 | DC21: 0 | DD21: 0 | DE21: 0 | DF21: 0 | DG21: 0 | DH21: 0 | DI21: 0 | DJ21: 0 | DK21: 0 | DL21: 0 | DM21: 0 | DN21: 0 | DO21: 0 | DP21: 0 | DQ21: 0 | DR21: 0
E22: =SUM(E10:E17) -> 9300 | AR22: =SUM(AR10:AR17) -> 1130.625 | AS22: 0.1215725806 | AU22: Regular | AV22: =AR22 -> 1130.625 | EG22: 2019-06-01
AU23: Normal | AV23: 618.75 | EG23: 2019-07-01
AU24: Extra | AV24: 478.125 | EG24: 2019-08-01
EG25: 2019-09-01
AV26: =AV22-AV23-AV24 -> 33.75 | EG26: 2019-10-01
A27: Project Administrator | E27: Project Accountant | V27: Project Manager | AK27: Division Manager | EG27: 2019-11-01
EG28: 2019-12-01
AK29: Infra | AO29: Building | AQ29: Plant | AR29: Main office | EG29: 2020-01-01
EG30: 2020-02-01
EG31: 2020-03-01
EG32: 2020-04-01
EG33: 2020-05-01
EG34: 2020-06-01
EG35: 2020-07-01
EG36: 2020-08-01
EG37: 2020-09-01
EG38: 2020-10-01
EG39: 2020-11-01
EG40: 2020-12-01
EG41: 2021-01-01
EG42: 2021-02-01
EG43: 2021-03-01
EG44: 2021-04-01
EG45: 2021-05-01
EG46: 2021-06-01
EG47: 2021-07-01
EG48: 2021-08-01
EG49: 2021-09-01
EG50: 2021-10-01
EG51: 2021-11-01
EG52: 2021-12-01
EG53: 2022-01-01
EG54: 2022-02-01
EG55: 2022-03-01
EG56: 2022-04-01
EG57: 2022-05-01
EG58: 2022-06-01
EG59: 2022-07-01
EG60: 2022-08-01
EG61: 2022-09-01
EG62: 2022-10-01
EG63: 2022-11-01
EG64: 2022-12-01
EG65: 2023-01-01
EG66: 2023-02-01
EG67: 2023-03-01
EG68: 2023-04-01
EG69: 2023-05-01
EG70: 2023-06-01
EG71: 2023-07-01
EG72: 2023-08-01
EG73: 2023-09-01
EG74: 2023-10-01
EG75: 2023-11-01
EG76: 2023-12-01
EG77: 2024-01-01
EG78: 2024-02-01
EG79: 2024-03-01
EG80: 2024-04-01
EG81: 2024-05-01
EG82: 2024-06-01
EG83: 2024-07-01
EG84: 2024-08-01
EG85: 2024-09-01
EG86: 2024-10-01
EG87: 2024-11-01
EG88: 2024-12-01
EG89: 2025-01-01
EG90: 2025-02-01
EG91: 2025-03-01
EG92: 2025-04-01
EG93: 2025-05-01
EG94: 2025-06-01
EG95: 2025-07-01
EG96: 2025-08-01
EG97: 2025-09-01
EG98: 2025-10-01
EG99: 2025-11-01
EG100: 2025-12-01
EG101: 2026-01-01
EG102: 2026-02-01
EG103: 2026-03-01
EG104: 2026-04-01
EG105: 2026-05-01
EG106: 2026-06-01
EG107: 2026-07-01
EG108: 2026-08-01
EG109: 2026-09-01
EG110: 2026-10-01
EG111: 2026-11-01
EG112: 2026-12-01
EG113: 2027-01-01
EG114: 2027-02-01
EG115: 2027-03-01
EG116: 2027-04-01
EG117: 2027-05-01
EG118: 2027-06-01
EG119: 2027-07-01
EG120: 2027-08-01
EG121: 2027-09-01
EG122: 2027-10-01
EG123: 2027-11-01
EG124: 2027-12-01
EG125: 2028-01-01
EG126: 2028-02-01
EG127: 2028-03-01
EG128: 2028-04-01
EG129: 2028-05-01
EG130: 2028-06-01
EG131: 2028-07-01
EG132: 2028-08-01
EG133: 2028-09-01
EG134: 2028-10-01
EG135: 2028-11-01
EG136: 2028-12-01
EG137: 2029-01-01
EG138: 2029-02-01
EG139: 2029-03-01
EG140: 2029-04-01
EG141: 2029-05-01
EG142: 2029-06-01
EG143: 2029-07-01
EG144: 2029-08-01
EG145: 2029-09-01
EG146: 2029-10-01
EG147: 2029-11-01
EG148: 2029-12-01
EG149: 2030-01-01
EG150: 2030-02-01
EG151: 2030-03-01
EG152: 2030-04-01
EG153: 2030-05-01
EG154: 2030-06-01
EG155: 2030-07-01
EG156: 2030-08-01
EG157: 2030-09-01
EG158: 2030-10-01
EG159: 2030-11-01
EG160: 2030-12-01
EG161: 2031-01-01
EG162: 2031-02-01
EG163: 2031-03-01
EG164: 2031-04-01
EG165: 2031-05-01
EG166: 2031-06-01
EG167: 2031-07-01
EG168: 2031-08-01
EG169: 2031-09-01
EG170: 2031-10-01
EG171: 2031-11-01
EG172: 2031-12-01
EG173: 2032-01-01
EG174: 2032-02-01
EG175: 2032-03-01
EG176: 2032-04-01
EG177: 2032-05-01
EG178: 2032-06-01
EG179: 2032-07-01
EG180: 2032-08-01
EG181: 2032-09-01
EG182: 2032-10-01
EG183: 2032-11-01
EG184: 2032-12-01
EG185: 2033-01-01
EG186: 2033-02-01
EG187: 2033-03-01
EG188: 2033-04-01
EG189: 2033-05-01
EG190: 2033-06-01
EG191: 2033-07-01
EG192: 2033-08-01
EG193: 2033-09-01
EG194: 2033-10-01
EG195: 2033-11-01
EG196: 2033-12-01
EG197: 2034-01-01
EG198: 2034-02-01
EG199: 2034-03-01
EG200: 2034-04-01
EG201: 2034-05-01
... 361 more rows
